bitfinex-derivatives/quotes_BTCF0:USTF0_20251120
["timestamp","ask_amount","ask_price","bid_price","bid_amount"]
[1763650728993,0.00073267,91155.0,91154.0,0.06113261]
[1763650729693,0.00073267,91155.0,91154.0,0.06213261]
[1763650730703,0.04520267,91155.0,91154.0,0.00436261]
[1763650731394,0.00073267,91155.0,91154.0,0.04846261]
[1763650731589,0.02341267,91155.0,91154.0,0.04946261]
[1763650732001,0.00073267,91155.0,91154.0,0.04946261]
[1763650732204,0.00073267,91155.0,91154.0,0.04846261]
[1763650733489,0.00073267,91155.0,91154.0,0.04746261]
[1763650733690,0.00073267,91155.0,91154.0,0.04846261]
[1763650734103,0.02341267,91155.0,91154.0,0.04846261]
[1763650734400,0.04520267,91155.0,91154.0,0.00436261]
[1763650734788,0.00073267,91155.0,91154.0,0.04946261]
[1763650735194,0.3608,91164.0,91156.0,0.01367]
[1763650735400,0.04520267,91163.0,91162.0,0.0109796]
[1763650735604,0.04520267,91163.0,91162.0,0.01317763]
[1763650736000,0.04520267,91163.0,91162.0,0.00219803]
[1763650737203,0.07097844,91163.0,91162.0,0.02436803]
[1763650737400,0.07097844,91163.0,91162.0,0.01317763]
[1763650737604,0.07097844,91163.0,91162.0,0.03534763]
[1763650739099,0.07097844,91163.0,91162.0,0.05827763]
[1763650740002,0.07097844,91163.0,91162.0,0.00219803]
[1763650741104,0.07097844,91163.0,91154.0,0.00016458]
[1763650741105,0.02650844,91163.0,91157.0,0.0109802]
[1763650741401,0.02650844,91163.0,91154.0,0.02233458]
[1763650741402,0.04447,91155.0,91154.0,0.02233458]
[1763650741702,0.02650844,91155.0,91154.0,0.04746261]
[1763650742002,0.06900844,91155.0,91154.0,0.00236261]
[1763650742401,0.06900844,91155.0,91154.0,0.00016458]
[1763650743108,0.06900844,91155.0,91153.0,0.0109807]
[1763650743109,0.0425,91133.0,91132.0,0.3717833]
[1763650743296,0.04323267,91133.0,91132.0,0.36299803]
[1763650743603,0.0425,91126.0,91115.0,0.3608]
[1763650743807,0.04323267,91126.0,91125.0,0.05992803]
[1763650744302,0.00073267,91126.0,91125.0,0.05992803]
[1763650744502,0.00016458,91135.0,91134.0,0.055673]
[1763650744692,0.00016458,91135.0,91134.0,0.05787103]
[1763650745096,0.00089725,91135.0,91134.0,0.05787103]
[1763650745609,0.02125,91152.0,91151.0,0.055671]
[1763650745808,0.0392445,91158.0,91157.0,0.0109802]
[1763650745809,0.0425,91158.0,91157.0,0.0109802]
[1763650746000,0.06901052,91158.0,91157.0,0.01317823]
[1763650747111,0.02651052,91158.0,91157.0,0.05786823]
[1763650747403,0.06901052,91158.0,91157.0,0.05786823]
[1763650747805,0.06901052,91158.0,91157.0,0.01317823]
[1763650748698,0.02198267,91158.0,91157.0,0.05786823]
[1763650749299,8e-08,91167.0,91166.0,0.0556692]
[1763650749503,0.3608,91170.0,91169.0,0.0693988]
[1763650749705,0.4033,91180.0,91179.0,0.0109776]
[1763650749904,0.42981053,91180.0,91179.0,0.05786563]
[1763650750406,0.00073267,91180.0,91179.0,0.05786563]
[1763650750914,0.00016458,91189.0,91188.0,0.0109765]
[1763650751108,0.02666565,91189.0,91188.0,0.01317453]
[1763650751511,0.02666565,91189.0,91188.0,0.03504453]
[1763650751729,0.0589607,91205.0,91188.0,0.03504453]
[1763650751730,0.0392445,91218.0,91205.0,0.04469]
[1763650751900,0.3608,91222.0,91205.0,0.40768803]
[1763650752707,0.00016449,91215.0,91205.0,0.40768803]
[1763650752909,0.00016449,91215.0,91214.0,0.0556634]
[1763650753104,0.00016449,91215.0,91214.0,0.05786143]
[1763650753708,0.04266449,91215.0,91214.0,0.01317143]
[1763650754603,0.0425,91197.0,91196.0,0.00016449]
[1763650754802,0.4033,91197.0,91196.0,0.00236252]
[1763650755316,0.7641,91197.0,91196.0,0.00016449]
[1763650755500,0.0425,91179.0,91166.0,0.3608]
[1763650755707,0.0425,91177.0,91170.0,0.00219803]
[1763650756212,0.02125,91171.0,91170.0,0.00219803]
[1763650756407,0.4033,91178.0,91177.0,0.0109778]
[1763650756606,0.4033,91178.0,91177.0,0.01317583]
[1763650757415,0.4033,91178.0,91177.0,0.00219803]
[1763650758002,0.0425,91167.0,91166.0,0.3608]
[1763650758207,0.02125,91167.0,91166.0,0.36299803]
[1763650758415,0.4033,91178.0,91177.0,0.0109778]
[1763650758726,0.4033,91178.0,91177.0,0.00219803]
[1763650759015,0.0425,91171.0,91161.0,0.00016449]
[1763650759215,0.0425,91170.0,91169.0,0.0109787]
[1763650759418,0.0425,91170.0,91169.0,0.01317673]
[1763650759621,0.0425,91170.0,91169.0,0.03504673]
[1763650759806,0.0425,91170.0,91169.0,0.01317673]
[1763650760010,0.02125,91170.0,91169.0,0.03504673]
[1763650760321,0.4033,91178.0,91177.0,0.0109778]
[1763650760521,0.4033,91178.0,91177.0,0.01317583]
[1763650761915,0.4033,91178.0,91177.0,0.00219803]
[1763650764621,0.4033,91178.0,91162.0,0.0109796]
[1763650764810,0.0425,91177.0,91176.0,0.0109778]
[1763650765013,0.0425,91177.0,91176.0,0.01317583]
[1763650765613,0.0425,91162.0,91161.0,0.00016449]
[1763650765812,0.0425,91162.0,91152.0,0.10732]
[1763650765813,0.02125,91139.0,91138.0,0.05577208]
[1763650766118,0.3608,91151.0,91143.0,0.01373]
[1763650766318,0.02125,91145.0,91144.0,0.00219803]
[1763650766517,0.3608,91151.0,91138.0,9.958e-05]
[1763650766518,0.0425,91139.0,91138.0,9.958e-05]
[1763650766724,0.4033,91139.0,91138.0,9.958e-05]
[1763650768325,0.4033,91139.0,91138.0,0.00109958]
[1763650768727,0.4033,91139.0,91138.0,0.00209958]
[1763650770024,0.3608,91139.0,91138.0,0.05999011]
[1763650770626,0.4033,91139.0,91138.0,0.02619761]
[1763650770827,0.4033,91139.0,91138.0,0.00329761]
[1763650771026,0.4033,91139.0,91138.0,0.00229761]
[1763650772118,0.4033,91139.0,91138.0,9.958e-05]
[1763650773925,0.0425,91130.0,91129.0,0.00016458]
[1763650774229,0.0425,91130.0,91129.0,0.00236261]
[1763650774623,0.0425,91130.0,91129.0,0.02549261]
[1763650774814,0.04260032,91130.0,91129.0,0.02549261]
[1763650775318,0.04260032,91130.0,91129.0,0.00016458]
[1763650775927,0.0425,91105.0,91104.0,0.0247166]
[1763650776122,0.00010032,91105.0,91104.0,0.07309463]
[1763650777514,0.00016458,91114.0,91113.0,0.0571656]
[1763650777715,0.00016458,91114.0,91113.0,0.05936363]
[1763650778429,0.3608,91131.0,91130.0,0.0707735]
[1763650778634,0.3608,91131.0,91130.0,0.07297153]
[1763650778826,0.4035,91131.0,91130.0,0.03631153]
[1763650779027,0.4035,91131.0,91130.0,0.01318153]
[1763650779226,0.4035,91131.0,91130.0,0.03631153]
[1763650779422,0.00016458,91140.0,91139.0,0.0109824]
[1763650779731,0.40366458,91140.0,91139.0,0.01318043]
[1763650780420,0.40366458,91140.0,91139.0,0.00219803]
[1763650781230,0.36096458,91140.0,91139.0,0.04837803]
[1763650782829,0.38231458,91140.0,91139.0,0.04837803]
[1763650783737,0.36096458,91140.0,91139.0,0.04837803]
[1763650784330,0.00016458,91140.0,91139.0,0.04837803]
[1763650785338,0.00016458,91140.0,91139.0,0.04937803]
[1763650786238,0.3608,91158.0,91157.0,0.0341102]
[1763650786434,0.51624191,91158.0,91157.0,0.03630823]
[1763650786632,0.51624191,91158.0,91157.0,0.01317823]
[1763650786827,0.42893892,91158.0,91157.0,0.05935823]
[1763650787027,0.40758892,91158.0,91157.0,0.05935823]
[1763650787333,0.3608,91166.0,91165.0,0.0109793]
[1763650787631,0.3608,91166.0,91165.0,0.05935733]
[1763650788136,0.0427,91171.0,91170.0,0.0109785]
[1763650788437,0.06814302,91171.0,91170.0,0.01317653]
[1763650789139,0.02544302,91171.0,91170.0,0.05935653]
[1763650789334,0.00016458,91175.0,91174.0,0.0571582]
[1763650789636,0.00016458,91175.0,91174.0,0.05935623]
[1763650790233,0.04286458,91175.0,91174.0,0.05935623]
[1763650790430,0.06829001,91175.0,91174.0,0.05935623]
[1763650790934,0.04286458,91175.0,91174.0,0.04837803]
[1763650791239,0.06829021,91175.0,91174.0,0.05935623]
[1763650791438,0.04286458,91175.0,91174.0,0.00219803]
[1763650791630,0.06829088,91175.0,91174.0,0.00219803]
[1763650791825,0.02135,91169.0,91156.0,0.37457458]
[1763650792026,0.02135,91169.0,91168.0,0.04618]
[1763650792230,0.02135,91169.0,91168.0,0.04837803]
[1763650792838,0.0427,91169.0,91168.0,0.02532803]
[1763650793031,0.0427,91169.0,91168.0,0.00219803]
[1763650793236,0.0427,91169.0,91168.0,0.01317693]
[1763650793941,0.0427,91169.0,91168.0,0.00219803]
[1763650794941,0.0427,91164.0,91156.0,0.37457458]
[1763650795141,0.02135,91157.0,91156.0,0.43393301]
[1763650795341,0.02135,91157.0,91156.0,0.07313301]
[1763650795740,0.0427,91157.0,91156.0,0.06215261]
[1763650796339,0.0427,91157.0,91156.0,0.00236261]
[1763650799334,0.3608,91158.0,91157.0,0.0571603]
[1763650799536,0.3608,91158.0,91157.0,0.05935833]
[1763650799740,0.00016458,91175.0,91165.0,0.0109793]
[1763650799741,0.4035,91166.0,91165.0,0.0109793]
[1763650799940,0.43011317,91166.0,91165.0,0.03630733]
[1763650800129,0.02661317,91166.0,91165.0,0.05935733]
[1763650800330,0.00016458,91175.0,91174.0,0.0571582]
[1763650800529,0.02677449,91175.0,91174.0,0.05935623]
[1763650800731,0.00016458,91175.0,91174.0,0.42015623]
[1763650800939,0.04286458,91175.0,91174.0,0.04837803]
[1763650801245,0.04286458,91175.0,91174.0,0.02532803]
[1763650801442,0.04286458,91175.0,91174.0,0.04837803]
[1763650801642,0.04286458,91175.0,91174.0,0.04937803]
[1763650801843,0.04286458,91175.0,91174.0,0.00319803]
[1763650802043,0.00016458,91175.0,91174.0,0.04937803]
[1763650802648,0.3608,91194.0,91193.0,0.0552359]
[1763650802942,0.40859218,91194.0,91193.0,0.05743393]
[1763650803138,0.42994218,91194.0,91193.0,0.00219803]
[1763650803736,0.0427,91183.0,91182.0,0.0109772]
[1763650803932,0.0427,91175.0,91174.0,0.0334382]
[1763650804247,0.0427,91183.0,91182.0,0.0552371]
[1763650804446,0.0427,91183.0,91182.0,0.05743513]
[1763650804748,0.0427,91183.0,91182.0,0.00219803]
[1763650805344,0.00016449,91184.0,91183.0,0.0552371]
[1763650805543,0.00016449,91184.0,91183.0,0.05743513]
[1763650805733,0.00027411,91206.0,91205.0,0.0109745]
[1763650805734,0.04297411,91206.0,91205.0,0.0109745]
[1763650805939,0.06929782,91206.0,91205.0,0.01317253]
[1763650806247,0.02659782,91206.0,91205.0,0.05743253]
[1763650806445,0.00027411,91206.0,91205.0,0.05743253]
[1763650806641,0.3608,91215.0,91211.0,0.0109737]
[1763650806843,0.3608,91215.0,91214.0,0.05743143]
[1763650806844,0.4035,91215.0,91214.0,0.05743143]
[1763650807240,0.3608,91220.0,91219.0,0.0109728]
[1763650807436,0.00016449,91222.0,91221.0,0.05802]
[1763650807738,0.02135,91231.0,91230.0,0.02146]
[1763650807938,0.0427,91231.0,91230.0,0.00219803]
[1763650808144,0.06898932,91231.0,91230.0,0.00219803]
[1763650808344,0.3608,91239.0,91238.0,0.02146]
[1763650808651,0.42976236,91239.0,91238.0,0.04645803]
[1763650808851,0.42976236,91239.0,91238.0,0.00219803]
[1763650809240,0.42976236,91239.0,91238.0,0.02365803]
[1763650809550,0.4035,91239.0,91238.0,0.02365803]
[1763650810146,0.4035,91239.0,91238.0,0.03462853]
[1763650810444,0.38215,91239.0,91238.0,0.05742853]
[1763650811244,0.4035,91239.0,91238.0,0.00219803]
[1763650811441,0.0427,91230.0,91229.0,0.00016449]
[1763650811646,0.4035,91230.0,91229.0,0.00016449]
[1763650812042,0.4035,91230.0,91229.0,0.00236252]
[1763650812541,0.4035,91230.0,91229.0,0.04662252]
[1763650812737,0.4035,91230.0,91229.0,0.00236252]
[1763650812938,0.4035,91230.0,91200.0,0.37456]
[1763650812939,0.02135,91209.0,91200.0,0.37456]
[1763650813136,0.0427,91209.0,91208.0,0.00219803]
[1763650813540,0.0427,91209.0,91208.0,0.03741803]
[1763650813940,0.0427,91209.0,91208.0,0.00219803]
[1763650814152,0.0427,91201.0,91182.0,0.37456]
[1763650814352,0.04286449,91201.0,91200.0,0.00219803]
[1763650814851,0.0427,91183.0,91182.0,0.37472449]
[1763650815046,0.02135,91198.0,91197.0,0.0109753]
[1763650815248,0.02135,91198.0,91197.0,0.03463333]
[1763650815249,0.0427,91198.0,91197.0,0.03463333]
[1763650815444,0.0427,91198.0,91197.0,0.01317333]
[1763650817348,0.0437,91198.0,91197.0,0.01317333]
[1763650817651,0.001,91198.0,91197.0,0.05743333]
[1763650818153,0.00016449,91201.0,91200.0,0.0552351]
[1763650818456,0.04286449,91201.0,91200.0,0.01317313]
[1763650818951,0.0427,91183.0,91182.0,0.38570159]
[1763650819150,0.0427,91183.0,91182.0,0.38789962]
[1763650819356,0.0427,91183.0,91182.0,0.02709962]
[1763650819652,0.3608,91189.0,91188.0,0.0109765]
[1763650819653,0.4035,91189.0,91188.0,0.0109765]
[1763650819850,0.4035,91189.0,91188.0,0.00219803]
[1763650820157,0.0427,91170.0,91169.0,0.3717788]
[1763650820353,0.0427,91170.0,91169.0,0.00219803]
[1763650820551,0.3608,91172.0,91165.0,0.0109792]
[1763650820552,0.0427,91167.0,91165.0,0.0109792]
[1763650820855,0.0427,91167.0,91166.0,0.00247226]
[1763650821257,0.3608,91172.0,91171.0,0.0552386]
[1763650821442,0.4035,91172.0,91171.0,0.00219803]
[1763650821847,0.0427,91167.0,91166.0,0.00027423]
[1763650822048,0.0427,91167.0,91166.0,0.00247226]
[1763650823245,0.02135,91167.0,91166.0,0.02393226]
[1763650823462,0.44863881,91172.0,91166.0,0.04673226]
[1763650823750,0.0427,91167.0,91166.0,0.01345146]
[1763650824259,0.44863881,91172.0,91171.0,0.0324386]
[1763650824457,0.44863881,91172.0,91171.0,0.03463663]
[1763650824759,0.49133881,91172.0,91171.0,0.03463663]
[1763650825048,0.49133881,91172.0,91171.0,0.00219803]
[1763650825643,0.36096449,91176.0,91171.0,0.00219803]
[1763650825644,0.00016449,91176.0,91175.0,0.04426]
[1763650825848,0.00016449,91176.0,91175.0,0.05743613]
[1763650826055,0.40366449,91176.0,91175.0,0.00219803]
[1763650826254,0.0427,91167.0,91130.0,0.55514231]
[1763650826458,0.0427,91158.0,91130.0,0.37456]
[1763650826663,0.0427,91153.0,91142.0,0.010982]
[1763650826956,0.0427,91153.0,91130.0,0.01376]
[1763650827157,0.3608,91138.0,91131.0,0.00219803]
[1763650827364,0.4035,91138.0,91137.0,0.0109827]
[1763650827659,0.3608,91138.0,91137.0,0.05744073]
[1763650827856,0.02151459,91147.0,91146.0,0.0109816]
[1763650828056,0.04294151,91147.0,91146.0,0.02365803]
[1763650828362,0.04294151,91147.0,91146.0,0.00219803]
[1763650828946,0.04242,91142.0,91128.0,0.36096459]
[1763650829156,0.04242,91142.0,91141.0,0.0109822]
[1763650829359,0.3608,91145.0,91144.0,0.0559718]
[1763650829560,0.3608,91145.0,91144.0,0.05816983]
[1763650830061,0.38215,91145.0,91144.0,0.04718803]
[1763650830359,0.40322,91145.0,91144.0,0.00219803]
[1763650830556,0.40322,91145.0,91130.0,0.01376]
[1763650830761,0.3608,91136.0,91131.0,0.00219803]
[1763650831057,0.40322,91136.0,91131.0,0.00219803]
[1763650831250,0.04242,91132.0,91131.0,0.00219803]
[1763650831650,0.04242,91129.0,91128.0,0.00016459]
[1763650831860,0.40322,91129.0,91128.0,0.00016459]
[1763650832855,0.38215,91129.0,91128.0,0.04653262]
[1763650833058,9.01e-05,91132.0,91129.0,0.0109836]
[1763650833245,9.01e-05,91132.0,91131.0,0.04636803]
[1763650833449,0.0427901,91132.0,91131.0,0.00219803]
[1763650833654,9.01e-05,91132.0,91128.0,4.59e-06]
[1763650833860,0.02119,91107.0,91106.0,0.3717864]
[1763650834060,9.005e-05,91107.0,91106.0,0.41815443]
[1763650834259,0.04247005,91107.0,91106.0,0.37398443]
[1763650834646,9.005e-05,91107.0,91106.0,0.41815443]
[1763650835048,0.00016459,91116.0,91115.0,0.0551553]
[1763650835255,0.00016459,91116.0,91115.0,0.41815333]
[1763650835453,0.02135459,91116.0,91115.0,0.40716803]
[1763650835662,0.04254459,91116.0,91115.0,0.00219803]
[1763650836261,0.04254459,91116.0,91115.0,0.04736803]
[1763650836262,0.00016459,91116.0,91115.0,0.04736803]
[1763650836463,0.04254459,91116.0,91115.0,0.00319803]
[1763650836666,0.40334459,91116.0,91115.0,0.00319803]
[1763650836869,0.40334459,91116.0,91106.0,0.001]
[1763650836870,0.04238,91107.0,91106.0,0.001]
[1763650837061,0.40318,91107.0,91106.0,0.001]
[1763650837461,0.04238,91098.0,91096.0,0.00011447]
[1763650837859,0.02119,91082.0,91080.0,0.0109895]
[1763650838054,0.04238,91082.0,91081.0,0.36299803]
[1763650838451,0.38199,91090.0,91089.0,0.0109885]
[1763650838656,0.40318,91090.0,91089.0,0.01318653]
[1763650838858,0.38208415,91090.0,91089.0,0.03479653]
[1763650839154,0.40327415,91090.0,91089.0,0.01318653]
[1763650839765,0.04247415,91090.0,91089.0,0.01318653]
[1763650840558,0.10983872,91090.0,91089.0,0.03479653]
[1763650840766,9.415e-05,91090.0,91089.0,0.05735653]
[1763650841268,0.04247415,91090.0,91089.0,0.00219803]
[1763650841456,0.04247415,91090.0,91089.0,0.01318653]
[1763650841967,9.415e-05,91090.0,91089.0,0.41815653]
[1763650843170,0.04247415,91090.0,91089.0,0.01318653]
[1763650843665,9.415e-05,91090.0,91089.0,0.05835653]
[1763650844563,0.04247415,91090.0,91089.0,0.00419803]
[1763650845160,0.04247415,91090.0,91089.0,0.00319803]
[1763650845464,0.40327415,91090.0,91089.0,0.001]
[1763650845769,0.04238,91081.0,91080.0,0.00011037]
[1763650846069,0.40318,91081.0,91080.0,0.00011037]
[1763650846266,0.04238,91071.0,91062.0,0.3608]
[1763650846463,0.04238,91069.0,91068.0,0.0109909]
[1763650846762,0.0001102,91070.0,91069.0,0.04417]
[1763650846966,0.04238,91069.0,91068.0,0.0109909]
[1763650847162,0.04238,91069.0,91068.0,0.00219803]
[1763650847863,0.0001102,91070.0,91062.0,0.3608]
[1763650848065,0.04238,91067.0,91066.0,0.00219803]
[1763650848267,0.0001102,91070.0,91057.0,1.5]
[1763650848268,0.04238,91058.0,91057.0,1.5]
[1763650848466,0.04238,91051.0,91050.0,0.01319123]
[1763650848769,0.04249757,91051.0,91050.0,0.00219803]
[1763650848971,0.00011757,91051.0,91050.0,0.04636803]
[1763650849968,0.00011757,91051.0,91050.0,0.15356803]
[1763650850265,0.00016469,91060.0,91050.0,0.15356803]
[1763650850266,0.00016469,91060.0,91059.0,0.0551621]
[1763650850472,0.08951959,91065.0,91064.0,0.0551615]
[1763650850665,0.08951959,91065.0,91064.0,0.16455953]
[1763650850864,0.3608,91071.0,91065.0,0.0249012]
[1763650851074,0.0427,91067.0,91066.0,0.00219803]
[1763650851462,0.0427,91058.0,91057.0,0.00116469]
[1763650851668,0.0427,91058.0,91057.0,0.01435502]
[1763650851970,0.0427,91058.0,91057.0,0.00236272]
[1763650852763,0.0427,91058.0,91057.0,0.00336272]
[1763650853169,0.0427,91058.0,91057.0,0.00436272]
[1763650854767,0.02135,91058.0,91057.0,0.04853272]
[1763650854972,0.3608,91061.0,91060.0,0.04417]
[1763650855169,0.3608,91061.0,91060.0,0.04636803]
[1763650855569,0.38215,91061.0,91060.0,0.04636803]
[1763650855770,0.4035,91061.0,91060.0,0.00219803]
[1763650856370,0.0427,91058.0,91057.0,0.00016469]
[1763650856972,0.0427,91058.0,91057.0,0.00236272]
[1763650857766,0.3608,91061.0,91060.0,0.04417]
[1763650857972,0.4035,91061.0,91060.0,0.00219803]
[1763650858372,0.4045,91061.0,91060.0,0.00219803]
[1763650858581,0.4045,91061.0,91060.0,0.01319003]
[1763650859073,0.4035,91061.0,91060.0,0.00219803]
[1763650860176,0.0427,91058.0,91057.0,0.00016469]
[1763650860375,0.0427,91058.0,91057.0,0.00236272]
[1763650860579,0.3608,91061.0,91060.0,0.04417]
[1763650860875,0.4035,91061.0,91060.0,0.00219803]
[1763650861068,0.4035,91061.0,91057.0,0.00016469]
[1763650861069,0.0427,91058.0,91057.0,0.00016469]
[1763650861471,0.0427,91047.0,91036.0,0.0001068]
[1763650861671,0.0427,91037.0,91036.0,0.0001068]
[1763650861872,0.0427,91037.0,91036.0,0.00230483]
[1763650862181,0.0427,91037.0,91011.0,0.3608]
[1763650862182,0.04237,91015.0,91011.0,0.3608]
[1763650862377,0.04237,91012.0,91011.0,0.36299803]
[1763650862878,0.04237,91007.0,91006.0,4.71e-06]
[1763650863177,0.0421,90985.0,90982.0,0.0110013]
[1763650863387,0.02102,90985.0,90984.0,0.0110011]
[1763650863581,0.02102,90985.0,90984.0,0.01319913]
[1763650863771,0.02111397,90985.0,90984.0,0.01319913]
[1763650863973,9.397e-05,90985.0,90984.0,0.41763913]
[1763650864173,3.97e-06,90985.0,90984.0,0.41763913]
[1763650864381,8e-08,90994.0,90993.0,0.05464]
[1763650864685,0.3608,91028.0,91027.0,0.0325959]
[1763650864976,0.3608,91036.0,91035.0,0.032595]
[1763650865184,0.3608,91046.0,91035.0,0.00219803]
[1763650865368,0.3608,91046.0,91042.0,0.010994]
[1763650865572,0.18058231,91060.0,91048.0,0.04364]
[1763650865573,0.3608,91049.0,91048.0,0.04364]
[1763650865772,0.02118478,91053.0,91049.0,0.0109933]
[1763650865978,0.02118478,91053.0,91035.0,0.00016478]
[1763650865979,0.3608,91050.0,91035.0,0.00016478]
[1763650866173,0.04219,91036.0,91035.0,0.00016478]
[1763650866472,0.04219,91036.0,91011.0,0.0109978]
[1763650866671,0.3608,91018.0,91012.0,0.00219803]
[1763650867174,0.3608,91018.0,91015.0,0.0109973]
[1763650867477,0.3608,91018.0,91017.0,0.00219803]
[1763650867979,0.3608,91018.0,91017.0,0.04583803]
[1763650868375,0.38182,91018.0,91017.0,0.00219803]
[1763650868576,0.40299,91018.0,91017.0,0.00219803]
[1763650870275,0.04219,91005.0,90994.0,0.10724]
[1763650870473,0.04219,91005.0,90994.0,0.10943803]
[1763650870883,0.04219,91002.0,91001.0,0.010999]
[1763650871085,0.3608,91009.0,91008.0,0.0109982]
[1763650871284,0.3608,91018.0,91017.0,0.0546371]
[1763650871590,0.3608,91018.0,91017.0,0.05683513]
[1763650871778,0.36096478,91026.0,91025.0,0.0216]
[1763650871978,0.36096478,91026.0,91025.0,0.02379803]
[1763650872586,0.40315478,91026.0,91025.0,0.00219803]
[1763650872783,0.04219,91014.0,91013.0,0.0109975]
[1763650872987,0.04219,91014.0,91013.0,0.00219803]
[1763650873179,0.04219,91003.0,91002.0,0.3608]
[1763650873379,0.04219,91003.0,91002.0,0.00219803]
[1763650873691,0.04219,90991.0,90990.0,0.3608]
[1763650873886,0.04219,90991.0,90990.0,0.36299803]
[1763650874185,0.02102,90998.0,90997.0,0.0109995]
[1763650874388,0.02102,90998.0,90997.0,0.01319753]
[1763650874689,0.00016478,91000.0,90997.0,0.01319753]
[1763650874690,0.00016478,91000.0,90999.0,0.04364]
[1763650874897,0.00016478,91000.0,90999.0,0.04583803]
[1763650875081,0.04235478,91000.0,90999.0,0.00219803]
[1763650875676,0.04235478,91000.0,90999.0,0.04583803]
[1763650875677,0.00016478,91000.0,90999.0,0.04583803]
[1763650876488,0.04235478,91000.0,90999.0,0.00219803]
[1763650877191,0.04235478,91000.0,90998.0,0.0109994]
[1763650877192,0.04455281,91000.0,90998.0,0.0109994]
[1763650877493,0.04219,90999.0,90998.0,0.01173207]
[1763650877787,0.02102,90996.0,90990.0,0.3608]
[1763650877989,0.02102,90996.0,90991.0,0.00073267]
[1763650878178,0.00219803,90992.0,90991.0,0.01173297]
[1763650878379,0.00219803,90992.0,90991.0,0.05537297]
[1763650879593,0.04438803,90992.0,90991.0,0.00073267]
[1763650879786,0.04438803,90992.0,90975.0,0.01385]
[1763650879787,0.04219,90987.0,90975.0,0.01385]
[1763650880097,0.3608,90985.0,90980.0,0.00073267]
[1763650880391,0.04438803,90981.0,90980.0,0.01173427]
[1763650880690,0.04219,90972.0,90971.0,0.3608]
[1763650880898,0.04438803,90972.0,90971.0,0.36153267]
[1763650881081,0.04438803,90972.0,90971.0,0.37253537]
[1763650882091,0.04438803,90972.0,90962.0,0.3608]
[1763650882092,0.04219,90967.0,90962.0,0.3608]
[1763650882293,0.00219803,90967.0,90966.0,0.0446475]
[1763650883300,0.02321803,90967.0,90966.0,0.0010075]
[1763650883892,0.00219803,90967.0,90966.0,0.0446475]
[1763650884495,0.3608,90975.0,90974.0,0.04364]
[1763650884688,0.00219803,90975.0,90974.0,0.05537497]
[1763650885189,0.00016488,90981.0,90980.0,0.0546416]
[1763650885390,0.00016488,90981.0,90980.0,0.05537427]
[1763650885589,0.00236291,90981.0,90980.0,0.05537427]
[1763650885791,0.00016488,90981.0,90980.0,0.41617427]
[1763650886797,0.02338291,90981.0,90980.0,0.40517267]
[1763650887103,0.00236291,90981.0,90980.0,0.40517267]
[1763650887601,0.00016488,90981.0,90980.0,0.40517267]
[1763650887802,0.00236291,90981.0,90980.0,0.40517267]
[1763650888304,0.00236291,90981.0,90980.0,0.36153267]
[1763650888305,0.04455291,90981.0,90980.0,0.36153267]
[1763650888787,0.04455291,90981.0,90980.0,0.00073267]
[1763650888993,0.06996176,90981.0,90980.0,0.00073267]
[1763650889702,0.06996176,90981.0,90970.0,0.0110027]
[1763650889902,0.02102,90972.0,90971.0,0.00073267]
[1763650890094,0.40518803,90972.0,90971.0,0.00073267]
[1763650890295,0.04234,90967.0,90962.0,0.0110038]
[1763650890500,0.04453803,90967.0,90951.0,0.3608]
[1763650890700,0.04453803,90967.0,90963.0,0.0110036]
[1763650891198,0.04453803,90967.0,90966.0,0.0120108]
[1763650891708,0.00219803,90967.0,90966.0,0.0573908]
[1763650892998,0.04437803,90967.0,90966.0,0.0010075]
[1763650894403,0.00219803,90967.0,90966.0,0.0459175]
[1763650895291,0.04437803,90967.0,90966.0,0.0227975]
[1763650895492,0.04437803,90967.0,90966.0,0.00027483]
[1763650895806,0.06981592,90967.0,90966.0,0.00027483]
[1763650896116,0.04218,90952.0,90951.0,0.3608]
[1763650896308,0.04218,90951.0,90950.0,0.02186988]
[1763650896605,0.04437803,90951.0,90950.0,0.02260255]
[1763650896804,0.00219803,90951.0,90950.0,0.04572255]
[1763650897503,0.04437803,90951.0,90950.0,0.00081255]
[1763650898195,0.04437803,90951.0,90950.0,0.00181255]
[1763650898400,0.00219803,90951.0,90950.0,0.04672255]
[1763650898602,0.04437803,90951.0,90950.0,0.00081255]
[1763650898798,0.13230223,90951.0,90950.0,0.00081255]
[1763650899004,0.04437803,90951.0,90950.0,0.00081255]
[1763650899506,0.04437803,90951.0,90950.0,0.02260255]
[1763650900301,0.04437803,90951.0,90950.0,0.04572255]
[1763650900302,0.00319803,90951.0,90950.0,0.04572255]
[1763650901315,0.001,90951.0,90950.0,0.04572255]
[1763650902209,0.00016488,90961.0,90960.0,0.02179]
[1763650902411,0.00236291,90961.0,90960.0,0.05664667]
[1763650904099,0.00016488,90961.0,90960.0,0.05664667]
[1763650904415,0.00236291,90961.0,90960.0,0.05664667]
[1763650904711,0.0392445,90988.0,90987.0,0.0694008]
[1763650904900,0.3608,90998.0,90997.0,0.0559096]
[1763650905102,0.38843134,90998.0,90997.0,0.05664227]
[1763650905706,0.3608,90998.0,90997.0,0.05664227]
[1763650905899,0.0276301,90998.0,90997.0,0.05664227]
[1763650906108,0.00016488,91007.0,90997.0,0.05664227]
[1763650906319,0.00016488,91007.0,91006.0,0.0559085]
[1763650906611,0.02353291,91007.0,91006.0,0.04564267]
[1763650906799,0.04454291,91007.0,91006.0,0.00073267]
[1763650907114,0.04218,90999.0,90998.0,0.0327894]
[1763650907328,0.02133488,91007.0,91006.0,0.01173117]
[1763650907507,0.02353291,91007.0,91006.0,0.01173117]
[1763650907710,0.02353291,91007.0,91006.0,0.05764117]
[1763650907711,0.00236291,91007.0,91006.0,0.05764117]
[1763650907908,0.04454291,91007.0,91006.0,0.00173267]
[1763650908112,0.06994627,91007.0,91006.0,0.00173267]
[1763650908419,0.04454291,91007.0,91006.0,0.00173267]
[1763650908607,0.06994204,91007.0,91006.0,0.00173267]
[1763650909413,0.06994204,91007.0,91006.0,0.00073267]
[1763650909607,0.02776204,91007.0,91006.0,0.04564267]
[1763650909810,0.00236291,91007.0,91006.0,0.04564267]
[1763650911706,0.00016488,91007.0,91006.0,0.04564267]
[1763650912108,0.04454291,91007.0,91006.0,0.00073267]
[1763650913116,0.02117,90992.0,90991.0,0.0110001]
[1763650913312,0.04437803,90992.0,90991.0,0.00073267]
[1763650913508,0.04437803,90992.0,90991.0,0.01173297]
[1763650913709,0.04437803,90992.0,90991.0,0.00073267]
[1763650914012,0.04218,90991.0,90990.0,0.0110003]
[1763650914208,0.02336803,90991.0,90990.0,0.03352297]
[1763650914411,0.00219803,90991.0,90990.0,0.05664297]
[1763650914607,0.00219803,90991.0,90990.0,0.41744297]